bitfinex-derivatives/quotes_BTCF0:USTF0_20250905
["timestamp","ask_amount","ask_price","bid_price","bid_amount"]
[1757097169420,0.07373,111210.0,111200.0,1.22848587]
[1757097169924,0.07373,111210.0,111200.0,1.59550503]
[1757097170926,0.07373,111210.0,111200.0,1.22848587]
[1757097173416,0.07373,111210.0,111200.0,1.16474126]
[1757097174426,0.07373,111210.0,111200.0,1.2459847]
[1757097176224,0.07373,111210.0,111200.0,1.22856195]
[1757097178732,0.07373,111210.0,111200.0,0.86154279]
[1757097178933,0.07373,111210.0,111200.0,1.22856195]
[1757097180232,0.07373,111210.0,111200.0,0.86154279]
[1757097180432,0.07373,111210.0,111200.0,1.22856195]
[1757097181037,0.07373,111210.0,111200.0,1.58936195]
[1757097182335,0.08336,111220.0,111210.0,0.089914]
[1757097182538,0.08326,111220.0,111210.0,1.18475232]
[1757097182734,0.08326,111220.0,111210.0,1.52475232]
[1757097183533,0.09631,111220.0,111210.0,1.27475232]
[1757097183736,0.09631,111220.0,111210.0,1.53475232]
[1757097183934,0.09631,111220.0,111210.0,1.28475232]
[1757097184139,0.09631,111220.0,111210.0,1.5537866]
[1757097184439,0.09631,111220.0,111210.0,1.5567866]
[1757097184639,0.08326,111220.0,111210.0,1.5567866]
[1757097184939,0.09631,111220.0,111210.0,3.0567866]
[1757097185241,0.09631,111220.0,111210.0,3.12160729]
[1757097186330,0.09631,111220.0,111210.0,3.13903004]
[1757097187442,0.08326,111220.0,111210.0,3.0577866]
[1757097187635,0.08326,111220.0,111210.0,3.13903004]
[1757097189444,0.08326,111220.0,111210.0,3.12161754]
[1757097192744,0.08326,111220.0,111210.0,3.0577866]
[1757097195250,0.08326,111220.0,111210.0,3.12161995]
[1757097196352,0.08326,111220.0,111210.0,3.0577866]
[1757097196850,0.08326,111220.0,111210.0,3.12161995]
[1757097197546,0.08326,111220.0,111210.0,3.73788191]
[1757097199048,0.0001,111230.0,111220.0,0.0899059]
[1757097199251,0.0001,111250.0,111240.0,0.0898897]
[1757097199457,0.03596,111260.0,111250.0,0.0898817]
[1757097199641,0.05659794,111260.0,111250.0,2.31744846]
[1757097200045,0.05659794,111260.0,111250.0,2.68421522]
[1757097200246,0.03368794,111260.0,111250.0,2.69421522]
[1757097200447,0.10738794,111260.0,111250.0,2.32744846]
[1757097200953,0.10738794,111260.0,111250.0,2.33640095]
[1757097202449,0.10938794,111260.0,111250.0,2.33640095]
[1757097202655,0.11138794,111260.0,111250.0,2.33640095]
[1757097203560,0.11138794,111260.0,111250.0,2.40983524]
[1757097207057,0.11138794,111260.0,111250.0,2.31995354]
[1757097207252,0.11138794,111260.0,111250.0,1.95318678]
[1757097207458,0.11138794,111260.0,111250.0,2.31995354]
[1757097207759,0.11138794,111260.0,111250.0,2.40983524]
[1757097208964,0.11138794,111260.0,111250.0,2.31100105]
[1757097209160,0.11138794,111260.0,111250.0,2.40088275]
[1757097209960,0.11138794,111260.0,111250.0,2.03411599]
[1757097210150,0.11138794,111260.0,111250.0,2.40088275]
[1757097211058,0.11138794,111260.0,111250.0,0.3708]
[1757097211059,1.09492146,111260.0,111250.0,0.3708]
[1757097211268,1.11783146,111260.0,111250.0,0.3708]
[1757097211762,0.03555,111250.0,111240.0,0.3609]
[1757097211966,0.78972146,111250.0,111240.0,0.3608]
[1757097212262,1.03972146,111250.0,111240.0,0.3608]
[1757097212658,1.03972146,111250.0,111230.0,0.3609]
[1757097212963,0.76908352,111240.0,111230.0,0.1801]
[1757097213163,0.78972146,111240.0,111230.0,0.5408]
[1757097213765,0.79870885,111240.0,111230.0,0.5408]
[1757097214063,1.41547561,111240.0,111230.0,0.3608]
[1757097214262,1.41547561,111240.0,111220.0,0.3609]
[1757097214567,1.12988352,111230.0,111220.0,0.0001]
[1757097214768,0.03555,111220.0,111210.0,0.3609]
[1757097214966,0.76908352,111220.0,111210.0,0.5208]
[1757097217763,0.77008352,111220.0,111210.0,0.5208]
[1757097217969,0.77008352,111220.0,111210.0,0.90582676]
[1757097217970,0.03755,111220.0,111210.0,0.90582676]
[1757097218160,0.40431676,111220.0,111210.0,0.90582676]
[1757097219363,0.03755,111220.0,111210.0,0.99574066]
[1757097219969,0.03755,111220.0,111210.0,0.90582676]
[1757097220370,0.03755,111220.0,111210.0,0.99574066]
[1757097220668,0.03655,111220.0,111210.0,0.99674066]
[1757097220969,0.03555,111220.0,111210.0,0.99674066]
[1757097221157,0.03555,111220.0,111210.0,0.99874066]
[1757097225372,0.03555,111220.0,111210.0,1.24874066]
[1757097225565,0.01274,111230.0,111220.0,0.1081659]
[1757097225765,0.01264,111230.0,111220.0,1.20249942]
[1757097225973,0.01264,111230.0,111220.0,0.4689659]
[1757097226167,0.03381,111230.0,111220.0,0.83573266]
[1757097226465,0.03381,111230.0,111220.0,1.20249942]
[1757097226875,0.03381,111230.0,111220.0,0.37906]
[1757097227073,0.40057676,111230.0,111220.0,0.74582676]
[1757097227471,0.40257676,111230.0,111220.0,0.74582676]
[1757097227975,0.03581,111230.0,111220.0,0.74582676]
[1757097228275,0.40057676,111230.0,111220.0,0.74682676]
[1757097228476,0.40157676,111230.0,111220.0,0.74682676]
[1757097228873,0.40157676,111230.0,111220.0,0.75669886]
[1757097229867,0.40157676,111230.0,111220.0,0.74782676]
[1757097230067,0.03481,111230.0,111220.0,0.74782676]
[1757097230279,0.40157676,111230.0,111220.0,0.74782676]
[1757097230475,0.40157676,111230.0,111220.0,0.7569215]
[1757097230676,0.40157676,111230.0,111220.0,0.74782676]
[1757097232283,0.03481,111230.0,111220.0,0.74782676]
[1757097232482,0.40157676,111230.0,111220.0,0.74782676]
[1757097235782,0.40157676,111230.0,111220.0,0.38106]
[1757097235982,0.40157676,111230.0,111220.0,0.74782676]
[1757097236185,0.47529676,111230.0,111220.0,0.74782676]
[1757097236577,0.10853,111230.0,111220.0,0.74782676]
[1757097236782,0.47529676,111230.0,111220.0,0.74782676]
[1757097237985,0.47529676,111230.0,111220.0,0.38106]
[1757097238885,0.47529676,111230.0,111220.0,0.74782676]
[1757097239686,0.47529676,111230.0,111220.0,0.38106]
[1757097239883,0.47529676,111230.0,111220.0,0.74782676]
[1757097242397,0.10853,111230.0,111220.0,0.74782676]
[1757097242693,0.47529676,111230.0,111220.0,0.74782676]
[1757097244591,0.47529676,111230.0,111220.0,0.38106]
[1757097244796,0.47529676,111230.0,111220.0,0.74782676]
[1757097245000,0.47529676,111230.0,111220.0,0.38106]
[1757097246397,0.84206352,111230.0,111220.0,0.38106]
[1757097246595,1.11300036,111230.0,111220.0,0.3628]
[1757097248711,1.11300036,111230.0,111220.0,0.002]
[1757097250312,1.18344207,111230.0,111220.0,0.002]
[1757097250813,0.03386,111220.0,111210.0,0.3609]
[1757097251013,0.03386,111220.0,111210.0,0.4108]
[1757097251014,0.76739352,111220.0,111210.0,0.4108]
[1757097252505,0.03386,111220.0,111210.0,0.4108]
[1757097252815,0.76739352,111220.0,111210.0,0.4108]
[1757097253314,0.77039352,111220.0,111210.0,0.4108]
[1757097253514,0.77039352,111220.0,111210.0,0.4128]
[1757097254216,0.77039352,111220.0,111210.0,0.4108]
[1757097254518,0.77139352,111220.0,111210.0,0.4108]
[1757097255609,0.77039352,111220.0,111210.0,0.4108]
[1757097256412,0.0359,111210.0,111200.0,0.3609]
[1757097256715,0.76943352,111210.0,111200.0,0.4608]
[1757097258615,0.76943352,111210.0,111200.0,0.54698335]
[1757097258812,0.76943352,111210.0,111200.0,0.52563335]
[1757097259014,0.40266676,111210.0,111200.0,0.48315]
[1757097259213,0.40366676,111210.0,111200.0,0.54698335]
[1757097259411,0.40396724,111210.0,111200.0,0.54698335]
[1757097260119,0.40496724,111210.0,111200.0,0.54698335]
[1757097261016,0.0379,111210.0,111200.0,0.54698335]
[1757097261218,0.40496724,111210.0,111200.0,0.54698335]
[1757097261916,0.40496724,111210.0,111200.0,0.54598335]
[1757097262115,0.40496724,111210.0,111200.0,0.48215]
[1757097263219,0.40496724,111210.0,111200.0,0.38215]
[1757097266224,0.42645527,111210.0,111200.0,0.38215]
[1757097267017,0.42645527,111210.0,111200.0,0.3608]
[1757097267218,0.79352251,111210.0,111200.0,0.3608]
[1757097267624,0.0359,111200.0,111190.0,0.45575269]
[1757097267824,0.40296724,111200.0,111190.0,0.45565269]
[1757097269223,0.40296724,111200.0,111190.0,0.45665269]
[1757097270327,0.40396724,111200.0,111190.0,0.45665269]
[1757097271128,0.40396724,111200.0,111190.0,0.38315]
[1757097273830,0.0369,111200.0,111190.0,0.38315]
[1757097274027,0.40396724,111200.0,111190.0,0.38315]
[1757097277222,0.40396724,111200.0,111190.0,0.38319]
[1757097297142,0.42570158,111200.0,111190.0,0.36184]
[1757097297336,0.67570158,111200.0,111190.0,0.36184]
[1757097297934,0.67570158,111200.0,111190.0,0.00104]
[1757097298136,1.04276882,111200.0,111190.0,0.00104]
[1757097298344,0.67570158,111200.0,111190.0,0.00104]
[1757097300248,1.04276882,111200.0,111190.0,0.00104]
[1757097300435,0.03527,111190.0,111180.0,0.00014]
[1757097300639,0.79113882,111190.0,111180.0,4e-05]
[1757097301539,0.42407158,111190.0,111180.0,0.0215]
[1757097301843,0.30700434,111190.0,111180.0,0.3823]
[1757097302045,0.67407158,111190.0,111180.0,0.3823]
[1757097302648,0.67407158,111190.0,111180.0,0.3843]
[1757097304147,0.30700434,111190.0,111180.0,0.3843]
[1757097304354,0.42407158,111190.0,111180.0,0.3843]
[1757097304749,0.03527,111190.0,111180.0,0.7242384]
[1757097305244,0.40233724,111190.0,111180.0,0.6343]
[1757097305444,0.40233724,111190.0,111180.0,0.36284]
[1757097306138,0.40233724,111190.0,111180.0,0.3843]
[1757097306543,0.40233724,111190.0,111180.0,0.36284]
[1757097307139,0.40233724,111190.0,111180.0,0.3843]
[1757097309246,0.03527,111190.0,111180.0,1.09130564]
[1757097309440,0.03527,111190.0,111180.0,0.7242384]
[1757097310652,0.03527,111190.0,111180.0,0.6343]
[1757097311053,0.40233724,111190.0,111180.0,0.3843]
[1757097311248,0.01333,111200.0,111180.0,1.43129824]
[1757097311552,0.0001,111200.0,111190.0,1.09625754]
[1757097311850,0.0001,111210.0,111200.0,0.1113822]
[1757097312052,0.08336,111220.0,111210.0,0.1177841]
[1757097312252,0.10496177,111220.0,111210.0,0.84565134]
[1757097312551,0.08326,111220.0,111210.0,0.84565134]
[1757097312954,0.08326,111220.0,111210.0,0.38867]
[1757097313156,0.11853,111220.0,111210.0,0.38226]
[1757097313655,0.08326,111220.0,111210.0,0.4721741]
[1757097314046,0.08526,111220.0,111210.0,0.4721741]
[1757097314247,0.08626,111220.0,111210.0,0.4785841]
[1757097314451,0.08626,111220.0,111210.0,0.84565134]
[1757097314653,0.08426,111220.0,111210.0,0.84565134]
[1757097315154,0.1069,111220.0,111210.0,0.83924134]
[1757097315356,0.1285874,111220.0,111210.0,0.74932724]
[1757097315660,0.1059474,111220.0,111210.0,0.74932724]
[1757097315849,0.08426,111220.0,111210.0,1.81271858]
[1757097316048,0.07085,111220.0,111210.0,1.81271858]
[1757097316250,0.07382,111230.0,111220.0,0.089906]
[1757097316445,0.09540227,111230.0,111220.0,1.25836498]
[1757097316652,0.09540227,111230.0,111220.0,1.13836498]
[1757097316853,0.09540227,111230.0,111220.0,0.88836498]
[1757097317250,0.09539366,111230.0,111220.0,0.88836498]
[1757097317446,0.07372,111230.0,111220.0,0.88836498]
[1757097317662,0.07372,111230.0,111220.0,1.13836498]
[1757097317856,0.07372,111230.0,111220.0,1.47836498]
[1757097318857,0.07372,111230.0,111220.0,1.13836498]
[1757097319058,0.07372,111230.0,111220.0,0.88836498]
[1757097320163,0.07472,111230.0,111220.0,0.88836498]
[1757097321451,0.07472,111230.0,111220.0,1.2548254]
[1757097322960,0.07472,111230.0,111220.0,1.2648254]
[1757097323655,0.07472,111230.0,111220.0,1.8548254]
[1757097323865,0.07472,111230.0,111220.0,1.5148254]
[1757097324961,0.07472,111230.0,111220.0,1.8648254]
[1757097325153,0.07472,111230.0,111220.0,2.23158923]
[1757097325353,0.07472,111230.0,111220.0,1.8648254]
[1757097330554,0.07472,111230.0,111220.0,1.6148254]
[1757097330763,0.45487383,111230.0,111220.0,1.24806157]
[1757097330955,0.72670383,111230.0,111220.0,0.79139174]
[1757097331156,0.72670383,111230.0,111220.0,0.95815557]
[1757097331361,0.72670383,111230.0,111220.0,0.59139174]
[1757097331558,0.72670383,111230.0,111220.0,0.5208]
[1757097332659,1.09346766,111230.0,111220.0,0.5208]
[1757097332860,1.09346766,111230.0,111220.0,0.3608]
[1757097333060,0.03522,111220.0,111210.0,0.3609]
[1757097333364,0.40198383,111220.0,111210.0,0.72756383]
[1757097335058,0.03522,111220.0,111210.0,0.72956383]
[1757097335258,0.40198383,111220.0,111210.0,0.72956383]
[1757097336354,0.03522,111220.0,111210.0,0.72956383]
[1757097336562,0.10904,111230.0,111220.0,0.089906]
[1757097336770,0.08711,111230.0,111220.0,0.81746983]
[1757097336964,0.45387383,111230.0,111220.0,0.450706]
[1757097337160,0.08711,111230.0,111220.0,0.81746983]
[1757097337566,0.45387383,111230.0,111220.0,0.81746983]
[1757097337766,0.45487383,111230.0,111220.0,0.81746983]
[1757097338669,0.08811,111230.0,111220.0,0.81746983]
[1757097338871,0.08811,111230.0,111220.0,1.18423366]
[1757097339272,0.08811,111230.0,111220.0,1.25499082]
[1757097341074,0.08811,111230.0,111220.0,1.16508482]
[1757097341573,0.08811,111230.0,111220.0,1.25499092]
[1757097341874,0.08811,111230.0,111220.0,0.88822709]
[1757097342875,0.45487383,111230.0,111220.0,0.88822709]
[1757097343270,0.47670383,111230.0,111220.0,0.79832099]
[1757097343471,0.47670383,111230.0,111220.0,0.43155716]
[1757097345075,0.10994,111230.0,111220.0,0.43155716]
[1757097345370,0.47670383,111230.0,111220.0,0.43155716]
[1757097345769,1.09346766,111230.0,111220.0,0.3608]
[1757097346174,0.72670383,111230.0,111220.0,0.3608]
[1757097347072,0.47670383,111230.0,111220.0,0.3608]
[1757097348064,0.47670383,111230.0,111220.0,0.43121194]
[1757097348264,0.72670383,111230.0,111220.0,0.79797577]
[1757097348768,0.72670383,111230.0,111220.0,0.43121194]
[1757097351778,0.74831955,111230.0,111220.0,0.43121194]
[1757097352074,0.72670383,111230.0,111220.0,0.43121194]
[1757097352267,0.74831923,111230.0,111220.0,0.43121194]
[1757097352681,0.72670383,111230.0,111220.0,0.43121194]
[1757097353176,0.74832043,111230.0,111220.0,0.43121194]
[1757097353980,0.72670383,111230.0,111220.0,0.43121194]
[1757097354276,0.74832141,111230.0,111220.0,0.43121194]
[1757097355378,0.49832141,111230.0,111220.0,0.3608]
[1757097355577,0.72670383,111230.0,111220.0,0.3608]
[1757097357387,0.74833102,111230.0,111220.0,0.3608]
[1757097359281,1.11509485,111230.0,111220.0,0.3608]
[1757097359482,1.11510513,111230.0,111220.0,0.3608]
[1757097364094,0.7483413,111230.0,111220.0,0.3608]
[1757097364297,0.13157747,111230.0,111220.0,0.3608]
[1757097364482,0.47670383,111230.0,111220.0,0.3608]
[1757097364893,0.4983463,111230.0,111220.0,0.3608]
[1757097365093,0.47670383,111230.0,111220.0,0.3608]
[1757097366504,0.40298383,111230.0,111220.0,0.3608]
[1757097367204,0.42462673,111230.0,111220.0,0.3608]
[1757097369302,0.03622,111230.0,111220.0,0.450706]
[1757097369501,0.03622,111230.0,111220.0,1.43423366]
[1757097369806,0.40298383,111230.0,111220.0,1.06746983]
[1757097370197,0.47670383,111230.0,111220.0,1.06746983]
[1757097370399,0.47670383,111230.0,111220.0,1.14021197]
[1757097370906,0.10994,111230.0,111220.0,1.14021197]
[1757097371108,0.10994,111230.0,111220.0,1.5069758]
[1757097371300,0.10994,111230.0,111220.0,1.14021197]
[1757097375804,0.10994,111230.0,111220.0,1.50101197]
[1757097377308,0.10994,111230.0,111220.0,1.8677758]
[1757097380203,0.07472,111230.0,111220.0,2.2077758]
[1757097381101,0.07472,111230.0,111220.0,2.2277758]
[1757097381303,0.47757383,111230.0,111220.0,1.16110597]
[1757097381504,0.47769625,111230.0,111220.0,0.79434214]
[1757097381703,0.11081,111230.0,111220.0,0.79434214]
[1757097383807,0.47769625,111230.0,111220.0,0.79434214]
[1757097385412,0.49934379,111230.0,111220.0,0.79434214]
[1757097386511,0.13245754,111230.0,111220.0,0.79434214]
[1757097389714,0.49934379,111230.0,111220.0,0.79434214]
[1757097391016,0.58259379,111230.0,111220.0,0.79434214]
[1757097391215,0.21570754,111230.0,111220.0,0.79434214]
[1757097391510,0.58259379,111230.0,111220.0,0.79434214]
[1757097392813,0.58259379,111230.0,111220.0,0.7216]
[1757097394512,0.83259379,111230.0,111220.0,0.7216]
[1757097395319,0.46570754,111230.0,111220.0,0.7216]
[1757097395521,0.81094625,111230.0,111220.0,0.7216]
[1757097395710,0.81094625,111230.0,111210.0,0.0001]
[1757097395915,0.19416,111230.0,111220.0,0.3608]
[1757097396114,0.19406,111230.0,111220.0,0.3608]
[1757097397022,0.55994625,111230.0,111220.0,0.3608]
[1757097398115,0.56194625,111230.0,111220.0,0.3608]
[1757097398419,0.19606,111230.0,111220.0,0.3608]
[1757097398625,0.58460222,111230.0,111220.0,0.3608]
[1757097406830,0.56294625,111230.0,111220.0,0.3608]
[1757097407832,0.19606,111230.0,111220.0,0.450706]
[1757097408033,0.21771654,111230.0,111220.0,1.06759225]
[1757097408328,0.19606,111230.0,111220.0,1.06759225]
[1757097408730,0.17318,111230.0,111220.0,1.06759225]
[1757097409329,0.17218,111230.0,111220.0,1.06759225]
[1757097410427,0.17018,111230.0,111220.0,1.06759225]
[1757097410635,0.17118,111230.0,111220.0,1.06759225]
[1757097411126,0.17118,111230.0,111220.0,1.14106088]
[1757097411431,0.19319,111230.0,111220.0,0.43426863]
[1757097411830,0.19319,111230.0,111220.0,0.52417463]
[1757097416033,0.19319,111230.0,111220.0,0.43426863]
[1757097416232,0.56007625,111230.0,111220.0,0.43426863]
[1757097417332,0.19319,111230.0,111220.0,0.52417463]
[1757097418536,0.19319,111230.0,111220.0,0.43426863]
[1757097418830,0.56007625,111230.0,111220.0,0.43426863]
[1757097419835,0.83173094,111230.0,111220.0,0.3608]
[1757097420032,0.03523,111220.0,111210.0,0.42454395]
[1757097420337,0.40211625,111220.0,111210.0,0.3608]
[1757097421332,0.03523,111210.0,111200.0,0.06374395]
[1757097421540,0.7690025,111210.0,111200.0,0.06364395]
[1757097421749,1.0990025,111210.0,111190.0,0.06374395]
[1757097421930,0.40211625,111200.0,111190.0,0.06374395]
[1757097422129,0.40211625,111200.0,111190.0,0.06364395]
[1757097422836,0.40211625,111200.0,111180.0,0.42458395]
[1757097422837,0.03523,111190.0,111180.0,0.42458395]
[1757097423038,0.40211625,111190.0,111180.0,0.42448395]
[1757097424433,0.03523,111190.0,111180.0,0.42448395]
[1757097424634,0.40211625,111190.0,111180.0,0.42448395]
[1757097424937,0.40211625,111190.0,111180.0,0.42648395]
[1757097425638,0.03523,111190.0,111180.0,0.42648395]
[1757097425841,0.40211625,111190.0,111180.0,0.42648395]
[1757097426339,0.03523,111190.0,111180.0,0.42648395]
[1757097426729,0.17033,111200.0,111180.0,1.1333076]
[1757097426930,0.19234,111200.0,111190.0,0.3608]
[1757097427134,0.19224,111200.0,111190.0,0.3608]
[1757097427334,0.55912625,111200.0,111190.0,0.3608]
[1757097429137,0.56012625,111200.0,111190.0,0.3608]
[1757097430445,0.19324,111200.0,111190.0,0.3608]
[1757097430842,0.56012625,111200.0,111190.0,0.3608]
[1757097436650,0.56012625,111200.0,111190.0,0.42444395]
[1757097436856,0.19312,111200.0,111190.0,0.42444395]
[1757097437151,0.19312,111200.0,111190.0,1.1312604]
[1757097437152,0.17123,111200.0,111190.0,1.1312604]
[1757097437347,0.19312,111200.0,111190.0,0.67444395]
[1757097437552,0.56000625,111200.0,111190.0,0.42444395]
[1757097438054,0.19312,111200.0,111190.0,0.42444395]
[1757097438242,0.17123,111200.0,111190.0,1.0413302]
[1757097438442,0.17023,111200.0,111190.0,1.0413302]
[1757097438854,0.19212,111200.0,111190.0,0.67644395]
[1757097439558,0.19212,111200.0,111190.0,1.0433302]
[1757097439945,0.19212,111200.0,111190.0,1.1332604]
[1757097441056,0.19212,111200.0,111190.0,0.7027302]
[1757097441357,0.17023,111200.0,111190.0,0.7027302]
[1757097441556,0.19212,111200.0,111190.0,1.06975175]
[1757097441758,0.17023,111200.0,111190.0,1.06975175]
[1757097443349,0.17023,111200.0,111190.0,1.15099519]
[1757097448863,0.19212,111200.0,111190.0,0.78397364]
[1757097449068,0.19212,111200.0,111190.0,1.15099519]
[1757097451167,0.15701,111200.0,111190.0,1.15099519]
[1757097451462,0.15701,111200.0,111190.0,1.83801674]
[1757097451863,0.15701,111200.0,111190.0,1.7567733]
[1757097452462,0.15701,111200.0,111190.0,1.4367733]
[1757097452663,0.15701,111200.0,111190.0,1.87668409]
[1757097454465,0.15701,111200.0,111190.0,1.7967733]
[1757097454663,0.035,111240.0,111230.0,0.0898978]
[1757097454864,0.02239,111260.0,111230.0,1.5455409]
[1757097455169,0.035,111250.0,111240.0,0.81771135]
[1757097455559,0.035,111250.0,111240.0,1.1847329]
[1757097455760,0.035,111250.0,111240.0,0.81771135]
[1757097456169,0.01311,111250.0,111240.0,0.4506898]
[1757097456370,0.01311,111250.0,111240.0,1.1847329]
[1757097457072,0.035,111250.0,111240.0,0.4506898]
[1757097457265,0.01511,111250.0,111240.0,1.1847329]
[1757097458064,0.01811,111250.0,111240.0,1.19353283]
[1757097458866,0.04,111250.0,111240.0,0.72782155]
[1757097459066,0.40702155,111250.0,111240.0,0.81771135]
[1757097459275,0.04,111250.0,111240.0,0.4506898]
[1757097459468,0.04,111250.0,111240.0,0.81771135]
[1757097459667,0.40702155,111250.0,111240.0,0.82662753]
[1757097459870,0.40702155,111250.0,111240.0,0.81771135]
[1757097460474,0.04,111250.0,111240.0,1.1847329]
[1757097461173,0.01811,111250.0,111240.0,1.1847329]
[1757097461376,0.01811,111250.0,111240.0,1.19373649]
[1757097464473,0.005,111250.0,111240.0,1.19373649]
[1757097466176,0.01888,111250.0,111240.0,1.19373649]
[1757097467672,0.005,111250.0,111240.0,1.44373649]
[1757097468975,0.005,111250.0,111240.0,2.15075804]
[1757097470781,0.004,111250.0,111240.0,2.15075804]
[1757097471479,0.001,111250.0,111240.0,2.15075804]
[1757097472486,0.001,111250.0,111240.0,0.70969339]
[1757097472676,0.001,111250.0,111240.0,1.20373649]
[1757097473878,0.001,111250.0,111240.0,1.45373649]
[1757097474183,0.001,111250.0,111240.0,1.82075804]
[1757097475874,0.001,111250.0,111240.0,1.81075804]
[1757097476085,0.001,111250.0,111240.0,1.82075804]
[1757097476281,0.001,111250.0,111240.0,2.19075804]
[1757097476579,0.001,111250.0,111240.0,1.19373649]
[1757097476785,0.001,111250.0,111240.0,1.20373649]
[1757097476990,0.001,111250.0,111240.0,0.46969339]
[1757097477187,0.001,111250.0,111240.0,1.20373649]
[1757097479183,0.08308,111260.0,111250.0,0.0898774]
[1757097479388,0.10457641,111260.0,111250.0,1.5447205]
[1757097479984,0.08298,111260.0,111250.0,1.5447205]
[1757097480488,0.08498,111260.0,111250.0,1.5447205]
[1757097481176,0.08498,111260.0,111250.0,1.60862721]
[1757097481382,0.08498,111260.0,111250.0,1.5447205]
[1757097482189,0.08698,111260.0,111250.0,1.5447205]
[1757097482390,0.08698,111260.0,111250.0,3.0447205]
[1757097482591,0.01328,111260.0,111250.0,3.0447205]
[1757097483092,0.01128,111260.0,111250.0,3.0467205]
[1757097483594,0.00928,111260.0,111250.0,3.0487205]
[1757097484386,0.00928,111260.0,111250.0,2.6887205]
[1757097484585,0.00928,111260.0,111250.0,2.6987205]
[1757097484787,0.00928,111260.0,111250.0,3.0387205]
[1757097485595,0.00928,111260.0,111250.0,3.10262721]
[1757097486281,0.00928,111260.0,111250.0,3.0387205]
[1757097489193,0.00928,111260.0,111250.0,3.0387205]
[1757097490792,0.00928,111260.0,111250.0,3.05574205]
[1757097490993,0.00928,111260.0,111250.0,3.0187205]
[1757097491590,0.00928,111260.0,111250.0,2.6987205]
[1757097491787,0.00928,111260.0,111250.0,3.0187205]
[1757097493995,0.00928,111260.0,111250.0,2.7087205]
[1757097494196,0.00928,111260.0,111250.0,3.0387205]
[1757097494396,0.00928,111260.0,111250.0,2.6887205]
[1757097494598,0.00928,111260.0,111250.0,3.0087205]
[1757097496604,0.00928,111260.0,111250.0,3.0587205]
[1757097497196,0.00928,111260.0,111250.0,3.42574205]
[1757097498404,0.00928,111260.0,111250.0,3.0587205]
[1757097500608,0.00928,111260.0,111250.0,3.42574205]
[1757097500805,0.15701,111270.0,111260.0,0.0898694]
[1757097501009,0.15691,111270.0,111260.0,1.93173405]
[1757097501605,0.15691,111270.0,111260.0,1.56341472]
[1757097502103,0.15691,111270.0,111260.0,1.68099418]
[1757097503306,0.15691,111270.0,111260.0,1.68199418]
[1757097503508,0.15691,111270.0,111260.0,1.68299418]
[1757097504410,0.07369,111270.0,111260.0,1.68299418]
[1757097504712,0.0001,111280.0,111270.0,0.0898613]
[1757097504909,0.0001,111290.0,111280.0,0.0898533]
[1757097505208,0.03505,111300.0,111280.0,0.81702596]
[1757097505409,0.16505,111300.0,111290.0,0.72717266]
[1757097505609,0.41495,111300.0,111290.0,0.72717266]
[1757097505809,0.16495,111300.0,111290.0,0.72717266]
[1757097506713,0.17389628,111300.0,111290.0,0.72717266]
[1757097507112,0.16495,111300.0,111290.0,0.80932934]
[1757097507912,0.16795,111300.0,111290.0,0.80932934]
[1757097509817,0.16995,111300.0,111290.0,0.80932934]
[1757097511616,0.16995,111300.0,111290.0,0.44295668]
[1757097511819,0.16995,111300.0,111290.0,0.80932934]
[1757097512409,0.16995,111300.0,111290.0,0.80037945]
[1757097513217,0.16995,111300.0,111290.0,0.43400679]
[1757097513509,0.16995,111300.0,111290.0,0.80037945]
[1757097514411,0.16995,111300.0,111290.0,0.80943022]
[1757097514819,0.03995,111300.0,111290.0,0.89927542]
[1757097515012,0.36995,111300.0,111290.0,0.80943022]
[1757097515519,0.39152401,111300.0,111290.0,0.80943022]
[1757097515917,0.39152401,111300.0,111290.0,0.80037945]
[1757097516318,0.39152401,111300.0,111290.0,0.80960011]
[1757097518616,0.39152401,111300.0,111290.0,0.44322745]
[1757097518816,0.39152401,111300.0,111290.0,0.80960011]
[1757097519207,0.39152401,111300.0,111290.0,0.44322745]
[1757097519411,0.39152401,111300.0,111290.0,0.80960011]
[1757097520319,0.39152401,111300.0,111290.0,0.44322745]
[1757097520618,0.39152401,111300.0,111290.0,0.80960011]
[1757097523119,0.39152401,111300.0,111290.0,0.44322745]
[1757097523321,0.39152401,111300.0,111290.0,0.80960011]
[1757097523714,0.39152401,111300.0,111290.0,0.43400679]
[1757097523908,0.75789667,111300.0,111290.0,0.43400679]
[1757097524108,1.37426933,111300.0,111290.0,0.43400679]
[1757097524313,1.00789667,111300.0,111290.0,0.43400679]
[1757097524514,1.37426933,111300.0,111290.0,0.3608]
[1757097524809,1.00789667,111300.0,111290.0,0.3608]
[1757097526015,0.75789667,111300.0,111290.0,0.43358272]
[1757097527122,0.73632266,111300.0,111290.0,0.43358272]
[1757097527421,0.75791078,111300.0,111290.0,0.43358272]
[1757097529127,0.39153812,111300.0,111290.0,0.43358272]
[1757097529325,1.37428344,111300.0,111290.0,0.3608]
[1757097529920,1.00791078,111300.0,111290.0,0.3608]
[1757097530121,1.37428344,111300.0,111290.0,0.3608]
[1757097530429,1.00791078,111300.0,111290.0,0.3608]
[1757097531125,1.37428344,111300.0,111290.0,0.3608]
[1757097531924,0.03576,111290.0,111280.0,0.43332978]
[1757097532231,0.40213266,111290.0,111280.0,0.07242978]
[1757097532524,0.01338,111280.0,111270.0,0.42480671]
[1757097532724,0.03576,111280.0,111270.0,0.42470671]
[1757097534023,0.03576,111280.0,111270.0,0.43378286]
[1757097534223,0.40213266,111280.0,111270.0,0.43378286]
[1757097534423,0.40213266,111280.0,111270.0,0.42470671]
[1757097536035,0.03576,111280.0,111270.0,0.49499371]
[1757097536227,0.40213266,111280.0,111270.0,0.49499371]
[1757097536531,0.03576,111280.0,111270.0,0.49499371]
[1757097538726,0.40213266,111280.0,111270.0,0.49499371]
[1757097540137,0.03576,111280.0,111270.0,0.49499371]
[1757097540438,0.40213266,111280.0,111270.0,0.49499371]
[1757097540936,0.40213266,111280.0,111270.0,0.50499371]
[1757097541138,0.03576,111280.0,111270.0,0.50499371]
[1757097545743,0.40213266,111280.0,111270.0,0.50499371]
[1757097548846,0.65213266,111280.0,111270.0,0.42470671]
[1757097549246,0.65213266,111280.0,111270.0,0.3608]
[1757097550140,0.65413266,111280.0,111270.0,0.3608]
[1757097551442,0.65513266,111280.0,111270.0,0.3608]
[1757097551847,0.03876,111280.0,111270.0,0.3608]
[1757097552054,0.03876,111280.0,111270.0,0.81703406]
[1757097552444,0.03876,111280.0,111270.0,0.4506614]
[1757097552645,0.03876,111280.0,111270.0,1.06703406]